[Event "Titled Tuesday Blitz May 16 Late 2023"]
[White "Krasteva, Beloslava"]
[Black "Pein, Jonathan"]
[WhiteFideId "2922029"]
[BlackFideId "417092"]
[WhiteElo "2187"]
[BlackElo "2151"]
[Result "0-1"]
[Round "06"]
[TimeControl "180+2"]
[Date "2023.05.16"]
[WhiteClock "0:00:00"]
[BlackClock "0:00:55"]

1. d4 {[%clk 0:03:00]}  d6 {[%clk 0:02:54]} 2. e4 {[%clk 0:02:58]}  Nf6 {[%clk 0:02:54]} 3. Bd3 {[%clk 0:02:54]}  Nc6 {[%clk 0:02:54]} 4. c3 {[%clk 0:02:47]}  e5 {[%clk 0:02:54]} 5. Nf3 {[%clk 0:02:44]}  Bg4 {[%clk 0:02:50]} 6. Be3 {[%clk 0:02:43]}  g6 {[%clk 0:02:48]} 7. h3 {[%clk 0:02:42]}  Bxf3 {[%clk 0:02:49]} 8. Qxf3 {[%clk 0:02:36]}  Bg7 {[%clk 0:02:49]} 9. Na3 {[%clk 0:02:29]}  O-O {[%clk 0:02:47]} 10. O-O {[%clk 0:02:21]}  a6 {[%clk 0:02:45]} 11. Nc2 {[%clk 0:01:57]}  Nh5 {[%clk 0:02:45]} 12. g3 {[%clk 0:01:50]}  Qd7 {[%clk 0:02:43]} 13. Qg2 {[%clk 0:01:48]}  Rae8 {[%clk 0:02:38]} 14. Rae1 {[%clk 0:01:46]}  f6 {[%clk 0:02:33]} 15. f4 {[%clk 0:01:45]}  Kh8 {[%clk 0:02:22]} 16. f5 {[%clk 0:01:35]}  exd4 {[%clk 0:02:16]} 17. cxd4 {[%clk 0:01:33]}  d5 {[%clk 0:01:57]} 18. exd5 {[%clk 0:01:27]}  Ne7 {[%clk 0:01:57]} 19. fxg6 {[%clk 0:01:21]}  hxg6 {[%clk 0:01:57]} 20. Bd2 {[%clk 0:01:07]}  f5 {[%clk 0:01:57]} 21. g4 {[%clk 0:00:55]}  fxg4 {[%clk 0:01:52]} 22. hxg4 {[%clk 0:00:56]}  Nf6 {[%clk 0:01:52]} 23. Qh3+ {[%clk 0:00:45]}  Kg8 {[%clk 0:01:47]} 24. Ne3 {[%clk 0:00:33]}  Nexd5 {[%clk 0:01:43]} 25. Bxg6 {[%clk 0:00:28]}  Nxe3 {[%clk 0:01:38]} 26. Bxe3 {[%clk 0:00:20]}  Qxg4+ {[%clk 0:01:13]} 27. Qxg4 {[%clk 0:00:20]}  Nxg4 {[%clk 0:01:14]} 28. Bxe8 {[%clk 0:00:20]}  Rxe8 {[%clk 0:01:15]} 29. Bf2 {[%clk 0:00:18]}  Rxe1 {[%clk 0:01:15]} 30. Rxe1 {[%clk 0:00:19]}  Nxf2 {[%clk 0:01:15]} 31. Kxf2 {[%clk 0:00:19]}  Bxd4+ {[%clk 0:01:16]} 32. Kf3 {[%clk 0:00:18]}  Bxb2 {[%clk 0:01:11]} 33. Rb1 {[%clk 0:00:18]}  Bd4 {[%clk 0:01:10]} 34. Rxb7 {[%clk 0:00:18]}  Bb6 {[%clk 0:01:11]} 35. Ke4 {[%clk 0:00:17]}  Kf7 {[%clk 0:01:12]} 36. Kd5 {[%clk 0:00:17]}  Ke7 {[%clk 0:01:13]} 37. Kc6 {[%clk 0:00:17]}  a5 {[%clk 0:01:09]} 38. a4 {[%clk 0:00:16]}  Ke6 {[%clk 0:00:53]} 39. Rb8 {[%clk 0:00:11]}  Ke5 {[%clk 0:00:53]} 40. Re8+ {[%clk 0:00:08]}  Kd4 {[%clk 0:00:53]} 41. Rb8 {[%clk 0:00:06]}  Kc4 {[%clk 0:00:53]} 42. Rxb6 {[%clk 0:00:05]}  cxb6 {[%clk 0:00:54]} 43. Kxb6 {[%clk 0:00:05]}  Kb4 {[%clk 0:00:54]} 44. Kc6 {[%clk 0:00:03]}  Kxa4 {[%clk 0:00:55]} 45. Kc5 {[%clk 0:00:00]}  Kb3 {[%clk 0:00:55]} 0-1


[Site "https://www.chess.com"]

[Event "Titled Tuesday Blitz May 16 Late 2023"]
[White "marik_spb"]
[Black "Schut, Han"]
[BlackFideId "1005561"]
[WhiteElo "2441"]
[BlackElo "2024"]
[Result "1/2-1/2"]
[Round "06"]
[TimeControl "180+2"]
[Date "2023.05.16"]
[WhiteClock "0:00:08"]
[BlackClock "0:00:52"]

1. d4 {[%clk 0:02:30]}  Nf6 {[%clk 0:02:58]} 2. c4 {[%clk 0:02:30]}  g6 {[%clk 0:02:58]} 3. Nf3 {[%clk 0:02:31]}  Bg7 {[%clk 0:02:58]} 4. Nc3 {[%clk 0:02:29]}  d5 {[%clk 0:02:58]} 5. Bg5 {[%clk 0:02:26]}  Ne4 {[%clk 0:02:59]} 6. Bf4 {[%clk 0:02:26]}  Nxc3 {[%clk 0:02:59]} 7. bxc3 {[%clk 0:02:27]}  dxc4 {[%clk 0:03:00]} 8. e3 {[%clk 0:02:25]}  Be6 {[%clk 0:03:00]} 9. Qb1 {[%clk 0:02:25]}  b6 {[%clk 0:02:58]} 10. Ng5 {[%clk 0:02:24]}  Bd5 {[%clk 0:02:58]} 11. e4 {[%clk 0:02:23]}  h6 {[%clk 0:02:58]} 12. Nf3 {[%clk 0:02:15]}  Be6 {[%clk 0:02:57]} 13. Be5 {[%clk 0:02:04]}  Bxe5 {[%clk 0:02:28]} 14. Nxe5 {[%clk 0:02:05]}  c5 {[%clk 0:02:28]} 15. Qb5+ {[%clk 0:01:56]}  Nd7 {[%clk 0:01:59]} 16. Bxc4 {[%clk 0:01:34]}  a6 {[%clk 0:01:43]} 17. Qc6 {[%clk 0:00:51]}  Rc8 {[%clk 0:01:40]} 18. Bxe6 {[%clk 0:00:38]}  Rxc6 {[%clk 0:01:32]} 19. Bxd7+ {[%clk 0:00:38]}  Qxd7 {[%clk 0:01:32]} 20. Nxd7 {[%clk 0:00:38]}  Kxd7 {[%clk 0:01:23]} 21. Kd2 {[%clk 0:00:38]}  cxd4 {[%clk 0:01:22]} 22. cxd4 {[%clk 0:00:39]}  Rhc8 {[%clk 0:01:22]} 23. Rhc1 {[%clk 0:00:25]}  Rxc1 {[%clk 0:01:21]} 24. Rxc1 {[%clk 0:00:26]}  Rxc1 {[%clk 0:01:21]} 25. Kxc1 {[%clk 0:00:27]}  f5 {[%clk 0:01:21]} 26. exf5 {[%clk 0:00:22]}  gxf5 {[%clk 0:01:20]} 27. Kc2 {[%clk 0:00:20]}  Kd6 {[%clk 0:01:20]} 28. f3 {[%clk 0:00:18]}  Kd5 {[%clk 0:01:15]} 29. Kd3 {[%clk 0:00:13]}  f4 {[%clk 0:01:03]} 30. g3 {[%clk 0:00:13]}  fxg3 {[%clk 0:01:03]} 31. hxg3 {[%clk 0:00:14]}  b5 {[%clk 0:01:03]} 32. g4 {[%clk 0:00:13]}  a5 {[%clk 0:01:03]} 33. f4 {[%clk 0:00:13]}  e6 {[%clk 0:01:03]} 34. g5 {[%clk 0:00:11]}  hxg5 {[%clk 0:01:04]} 35. fxg5 {[%clk 0:00:12]}  Kd6 {[%clk 0:01:00]} 36. Ke4 {[%clk 0:00:06]}  Ke7 {[%clk 0:01:00]} 37. d5 {[%clk 0:00:05]}  b4 {[%clk 0:00:53]} 38. g6 {[%clk 0:00:04]}  exd5+ {[%clk 0:00:49]} 39. Kxd5 {[%clk 0:00:05]}  a4 {[%clk 0:00:50]} 40. Kc4 {[%clk 0:00:05]}  b3 {[%clk 0:00:50]} 41. axb3 {[%clk 0:00:05]}  axb3 {[%clk 0:00:51]} 42. Kxb3 {[%clk 0:00:06]}  Kf6 {[%clk 0:00:51]} 43. Kc4 {[%clk 0:00:07]}  Kg7 {[%clk 0:00:52]} 44. Kc5 {[%clk 0:00:08]}  Kxg6 {[%clk 0:00:52]} 1/2-1/2


[Site "https://www.chess.com"]

[Event "Titled Tuesday Blitz May 16 Late 2023"]
[White "Araujo, Everson De Moura"]
[Black "Fan_Of_Chucky"]
[WhiteFideId "22737197"]
[WhiteElo "2035"]
[BlackElo "2438"]
[Result "0-1"]
[Round "06"]
[TimeControl "180+2"]
[Date "2023.05.16"]
[WhiteClock "0:00:08"]
[BlackClock "0:00:12"]

1. c4 {[%clk 0:03:00]}  c5 {[%clk 0:02:56]} 2. Nc3 {[%clk 0:03:00]}  Nc6 {[%clk 0:02:55]} 3. g3 {[%clk 0:03:00]}  g6 {[%clk 0:02:53]} 4. Bg2 {[%clk 0:03:00]}  Bg7 {[%clk 0:02:48]} 5. Nf3 {[%clk 0:03:01]}  Nf6 {[%clk 0:02:46]} 6. O-O {[%clk 0:03:00]}  O-O {[%clk 0:02:47]} 7. d3 {[%clk 0:02:59]}  Rb8 {[%clk 0:02:38]} 8. a3 {[%clk 0:02:57]}  a6 {[%clk 0:02:36]} 9. Bd2 {[%clk 0:02:52]}  b5 {[%clk 0:02:35]} 10. cxb5 {[%clk 0:02:34]}  axb5 {[%clk 0:02:36]} 11. Rb1 {[%clk 0:02:35]}  d5 {[%clk 0:02:18]} 12. Ne1 {[%clk 0:02:28]}  c4 {[%clk 0:01:49]} 13. dxc4 {[%clk 0:02:19]}  bxc4 {[%clk 0:01:50]} 14. Nc2 {[%clk 0:02:19]}  Bb7 {[%clk 0:01:41]} 15. Be3 {[%clk 0:02:10]}  Na5 {[%clk 0:01:36]} 16. Bf4 {[%clk 0:01:56]}  Rc8 {[%clk 0:01:33]} 17. e3 {[%clk 0:01:45]}  Re8 {[%clk 0:01:27]} 18. Be5 {[%clk 0:01:44]}  e6 {[%clk 0:01:18]} 19. Bd4 {[%clk 0:01:39]}  e5 {[%clk 0:01:06]} 20. Bc5 {[%clk 0:01:32]}  Rxc5 {[%clk 0:01:04]} 21. Na4 {[%clk 0:01:22]}  Rc8 {[%clk 0:01:01]} 22. Bh3 {[%clk 0:01:18]}  Rb8 {[%clk 0:00:57]} 23. Nc5 {[%clk 0:01:14]}  Qc7 {[%clk 0:00:55]} 24. Nxb7 {[%clk 0:01:04]}  Rxb7 {[%clk 0:00:54]} 25. Qd2 {[%clk 0:01:03]}  Rxb2 {[%clk 0:00:40]} 26. Qc3 {[%clk 0:00:43]}  Rxb1 {[%clk 0:00:36]} 27. Rxb1 {[%clk 0:00:44]}  Ne4 {[%clk 0:00:35]} 28. Qb4 {[%clk 0:00:41]}  Nb3 {[%clk 0:00:32]} 29. Bg2 {[%clk 0:00:38]}  Rb8 {[%clk 0:00:30]} 30. Qe1 {[%clk 0:00:38]}  Nbd2 {[%clk 0:00:29]} 31. Rd1 {[%clk 0:00:35]}  c3 {[%clk 0:00:24]} 32. Nb4 {[%clk 0:00:35]}  Qc4 {[%clk 0:00:14]} 33. Bf1 {[%clk 0:00:27]}  Nxf1 {[%clk 0:00:14]} 34. Qxf1 {[%clk 0:00:28]}  Qxf1+ {[%clk 0:00:14]} 35. Kxf1 {[%clk 0:00:29]}  c2 {[%clk 0:00:12]} 36. Nxc2 {[%clk 0:00:28]}  d4 {[%clk 0:00:09]} 37. exd4 {[%clk 0:00:26]}  exd4 {[%clk 0:00:10]} 38. f3 {[%clk 0:00:23]}  Nc3 {[%clk 0:00:10]} 39. Rd2 {[%clk 0:00:23]}  Rd8 {[%clk 0:00:09]} 40. f4 {[%clk 0:00:23]}  d3 {[%clk 0:00:09]} 41. Nb4 {[%clk 0:00:24]}  Nb1 {[%clk 0:00:07]} 42. Rxd3 {[%clk 0:00:16]}  Rxd3 {[%clk 0:00:08]} 43. Nxd3 {[%clk 0:00:17]}  Nxa3 {[%clk 0:00:08]} 44. Ke2 {[%clk 0:00:17]}  Nc4 {[%clk 0:00:09]} 45. Kf3 {[%clk 0:00:17]}  Nd6 {[%clk 0:00:09]} 46. Nc5 {[%clk 0:00:17]}  Nf5 {[%clk 0:00:09]} 47. Ke4 {[%clk 0:00:17]}  h5 {[%clk 0:00:09]} 48. Nd3 {[%clk 0:00:17]}  Nh6 {[%clk 0:00:09]} 49. Nf2 {[%clk 0:00:16]}  Ng4 {[%clk 0:00:09]} 50. Nxg4 {[%clk 0:00:11]}  hxg4 {[%clk 0:00:09]} 51. f5 {[%clk 0:00:12]}  g5 {[%clk 0:00:08]} 52. f6 {[%clk 0:00:07]}  Bxf6 {[%clk 0:00:07]} 53. Kf5 {[%clk 0:00:08]}  Bd8 {[%clk 0:00:07]} 54. Kxg4 {[%clk 0:00:09]}  Kg7 {[%clk 0:00:08]} 55. Kf5 {[%clk 0:00:10]}  f6 {[%clk 0:00:06]} 56. h4 {[%clk 0:00:10]}  gxh4 {[%clk 0:00:07]} 57. gxh4 {[%clk 0:00:11]}  Kh6 {[%clk 0:00:07]} 58. Kg4 {[%clk 0:00:10]}  Be7 {[%clk 0:00:06]} 59. Kf5 {[%clk 0:00:11]}  Kh5 {[%clk 0:00:07]} 60. Ke6 {[%clk 0:00:11]}  Kxh4 {[%clk 0:00:08]} 61. Kxe7 {[%clk 0:00:12]}  f5 {[%clk 0:00:08]} 62. Ke6 {[%clk 0:00:12]}  f4 {[%clk 0:00:09]} 63. Ke5 {[%clk 0:00:13]}  f3 {[%clk 0:00:10]} 64. Kf4 {[%clk 0:00:14]}  f2 {[%clk 0:00:11]} 65. Ke3 {[%clk 0:00:08]}  f1=Q {[%clk 0:00:12]} 0-1


[Site "https://www.chess.com"]

[Event "Titled Tuesday Blitz May 16 Late 2023"]
[White "Kovacevic, Radmila"]
[Black "Bouget, Alexandre"]
[WhiteFideId "933171"]
[BlackFideId "681318"]
[WhiteElo "2194"]
[BlackElo "2189"]
[Result "1-0"]
[Round "06"]
[TimeControl "180+2"]
[Date "2023.05.16"]
[WhiteClock "0:00:48"]
[BlackClock "0:00:00"]

1. e4 {[%clk 0:03:00]}  c6 {[%clk 0:02:51]} 2. d4 {[%clk 0:03:00]}  Na6 {[%clk 0:02:50]} 3. c4 {[%clk 0:03:00]}  Nc7 {[%clk 0:02:51]} 4. d5 {[%clk 0:02:59]}  g6 {[%clk 0:02:48]} 5. Qd4 {[%clk 0:02:58]}  Nf6 {[%clk 0:02:31]} 6. e5 {[%clk 0:02:57]}  Nh5 {[%clk 0:02:30]} 7. g4 {[%clk 0:02:52]}  Ng7 {[%clk 0:02:28]} 8. Bh6 {[%clk 0:02:34]}  Nge6 {[%clk 0:01:58]} 9. dxe6 {[%clk 0:02:32]}  Bxh6 {[%clk 0:01:57]} 10. exf7+ {[%clk 0:02:31]}  Kxf7 {[%clk 0:01:57]} 11. c5 {[%clk 0:02:18]}  Ne6 {[%clk 0:01:36]} 12. Bc4 {[%clk 0:02:16]}  b5 {[%clk 0:01:23]} 13. Bxe6+ {[%clk 0:02:11]}  dxe6 {[%clk 0:01:24]} 14. Qe4 {[%clk 0:01:54]}  Qd5 {[%clk 0:01:20]} 15. Qxd5 {[%clk 0:01:25]}  exd5 {[%clk 0:01:21]} 16. h3 {[%clk 0:01:24]}  Ke6 {[%clk 0:01:20]} 17. Nf3 {[%clk 0:01:24]}  Rf8 {[%clk 0:01:17]} 18. Ke2 {[%clk 0:01:23]}  b4 {[%clk 0:01:16]} 19. g5 {[%clk 0:01:09]}  Ba6+ {[%clk 0:01:13]} 20. Ke3 {[%clk 0:01:08]}  Bg7 {[%clk 0:01:05]} 21. Nd4+ {[%clk 0:01:07]}  Kd7 {[%clk 0:01:03]} 22. f4 {[%clk 0:01:06]}  h6 {[%clk 0:00:40]} 23. h4 {[%clk 0:01:05]}  hxg5 {[%clk 0:00:38]} 24. hxg5 {[%clk 0:01:06]}  Rh8 {[%clk 0:00:38]} 25. Nd2 {[%clk 0:01:06]}  e6 {[%clk 0:00:33]} 26. a3 {[%clk 0:01:00]}  bxa3 {[%clk 0:00:31]} 27. Rxh8 {[%clk 0:00:58]}  Rxh8 {[%clk 0:00:28]} 28. Rxa3 {[%clk 0:00:59]}  Rh3+ {[%clk 0:00:28]} 29. N2f3 {[%clk 0:00:58]}  Bb7 {[%clk 0:00:16]} 30. Rxa7 {[%clk 0:00:58]}  Kc8 {[%clk 0:00:14]} 31. Nxe6 {[%clk 0:00:57]}  d4+ {[%clk 0:00:10]} 32. Ke4 {[%clk 0:00:51]}  d3 {[%clk 0:00:00]} 33. Nxg7 {[%clk 0:00:48]} 1-0


[Site "https://www.chess.com"]

[Event "Titled Tuesday Blitz May 16 Late 2023"]
[White "Chessadiction1990"]
[Black "Toniutti, Ezio"]
[BlackFideId "113034"]
[WhiteElo "2144"]
[BlackElo "2215"]
[Result "0-1"]
[Round "06"]
[TimeControl "180+2"]
[Date "2023.05.16"]
[WhiteClock "0:00:11"]
[BlackClock "0:00:17"]

1. d4 {[%clk 0:03:00]}  d5 {[%clk 0:02:45]} 2. Bf4 {[%clk 0:02:59]}  Nf6 {[%clk 0:02:43]} 3. e3 {[%clk 0:02:59]}  e6 {[%clk 0:02:44]} 4. Nf3 {[%clk 0:02:54]}  Bd6 {[%clk 0:02:39]} 5. Bg3 {[%clk 0:02:52]}  O-O {[%clk 0:02:33]} 6. Bd3 {[%clk 0:02:44]}  c5 {[%clk 0:02:33]} 7. c3 {[%clk 0:02:43]}  Qc7 {[%clk 0:02:32]} 8. Ne5 {[%clk 0:02:41]}  Nbd7 {[%clk 0:02:31]} 9. f4 {[%clk 0:02:41]}  b6 {[%clk 0:02:31]} 10. Nd2 {[%clk 0:02:37]}  Bb7 {[%clk 0:02:31]} 11. Qf3 {[%clk 0:02:35]}  a5 {[%clk 0:02:27]} 12. a4 {[%clk 0:02:29]}  Ba6 {[%clk 0:02:03]} 13. Bc2 {[%clk 0:02:26]}  b5 {[%clk 0:02:02]} 14. axb5 {[%clk 0:02:23]}  Bxb5 {[%clk 0:02:02]} 15. Bh4 {[%clk 0:02:17]}  a4 {[%clk 0:01:57]} 16. g4 {[%clk 0:02:14]}  a3 {[%clk 0:01:56]} 17. bxa3 {[%clk 0:02:07]}  cxd4 {[%clk 0:01:50]} 18. exd4 {[%clk 0:02:01]}  Rxa3 {[%clk 0:01:29]} 19. Rxa3 {[%clk 0:01:48]}  Bxa3 {[%clk 0:01:30]} 20. g5 {[%clk 0:01:48]}  Nxe5 {[%clk 0:01:20]} 21. fxe5 {[%clk 0:01:30]}  Ne4 {[%clk 0:01:19]} 22. Nxe4 {[%clk 0:01:07]}  dxe4 {[%clk 0:01:14]} 23. Bxe4 {[%clk 0:01:04]}  Bb2 {[%clk 0:01:09]} 24. Kf2 {[%clk 0:00:49]}  Bxc3 {[%clk 0:01:01]} 25. Kg3 {[%clk 0:00:49]}  Bxd4 {[%clk 0:00:56]} 26. Kh3 {[%clk 0:00:48]}  Bxe5 {[%clk 0:00:51]} 27. Bg3 {[%clk 0:00:42]}  Bxg3 {[%clk 0:00:25]} 28. hxg3 {[%clk 0:00:43]}  Qe5 {[%clk 0:00:22]} 29. Kg4 {[%clk 0:00:24]}  g6 {[%clk 0:00:19]} 30. Rh4 {[%clk 0:00:17]}  f5+ {[%clk 0:00:18]} 31. gxf6 {[%clk 0:00:17]}  Rxf6 {[%clk 0:00:19]} 32. Qe3 {[%clk 0:00:13]}  Bc6 {[%clk 0:00:18]} 33. Kh3 {[%clk 0:00:13]}  Bxe4 {[%clk 0:00:17]} 34. Rxe4 {[%clk 0:00:14]}  Qf5+ {[%clk 0:00:17]} 35. Kh4 {[%clk 0:00:11]}  Qh5# {[%clk 0:00:17]} 0-1


[Site "https://www.chess.com"]

[Event "Titled Tuesday Blitz May 16 Late 2023"]
[White "Kim, Sergey"]
[Black "ritanovikova"]
[WhiteFideId "13700570"]
[WhiteElo "2582"]
[BlackElo "2148"]
[Result "1-0"]
[Round "06"]
[TimeControl "180+2"]
[Date "2023.05.16"]
[WhiteClock "0:00:31"]
[BlackClock "0:00:00"]

1. d4 {[%clk 0:03:00]}  e5 {[%clk 0:02:42]} 2. dxe5 {[%clk 0:02:59]}  Nc6 {[%clk 0:02:42]} 3. e4 {[%clk 0:02:59]}  Nxe5 {[%clk 0:02:42]} 4. Nf3 {[%clk 0:02:59]}  Nxf3+ {[%clk 0:02:42]} 5. Qxf3 {[%clk 0:02:58]}  Qf6 {[%clk 0:02:40]} 6. Nc3 {[%clk 0:02:58]}  Qxf3 {[%clk 0:02:40]} 7. gxf3 {[%clk 0:02:57]}  Bb4 {[%clk 0:02:35]} 8. Bd2 {[%clk 0:02:57]}  d6 {[%clk 0:02:34]} 9. a3 {[%clk 0:02:53]}  Ba5 {[%clk 0:02:31]} 10. b4 {[%clk 0:02:51]}  Bb6 {[%clk 0:02:31]} 11. Nd5 {[%clk 0:02:51]}  Ne7 {[%clk 0:02:30]} 12. Nxb6 {[%clk 0:02:46]}  axb6 {[%clk 0:02:29]} 13. Bc3 {[%clk 0:02:47]}  f6 {[%clk 0:02:28]} 14. Rg1 {[%clk 0:02:38]}  O-O {[%clk 0:02:27]} 15. Bc4+ {[%clk 0:02:34]}  Kh8 {[%clk 0:02:26]} 16. Ke2 {[%clk 0:02:27]}  Bd7 {[%clk 0:02:26]} 17. h4 {[%clk 0:02:21]}  b5 {[%clk 0:02:24]} 18. Bb3 {[%clk 0:02:18]}  Ng6 {[%clk 0:02:00]} 19. h5 {[%clk 0:02:09]}  Nf4+ {[%clk 0:01:59]} 20. Ke3 {[%clk 0:02:09]}  Nxh5 {[%clk 0:01:51]} 21. Rh1 {[%clk 0:02:10]}  g6 {[%clk 0:01:27]} 22. f4 {[%clk 0:02:07]}  Rae8 {[%clk 0:01:20]} 23. f3 {[%clk 0:02:07]}  c6 {[%clk 0:01:10]} 24. Rag1 {[%clk 0:02:01]}  d5 {[%clk 0:01:07]} 25. f5 {[%clk 0:01:55]}  Bxf5 {[%clk 0:01:05]} 26. Rxh5 {[%clk 0:01:45]}  gxh5 {[%clk 0:01:02]} 27. Kf4 {[%clk 0:01:45]}  Bg6 {[%clk 0:01:02]} 28. exd5 {[%clk 0:01:45]}  Rd8 {[%clk 0:00:47]} 29. Bd4 {[%clk 0:01:36]}  cxd5 {[%clk 0:00:41]} 30. c3 {[%clk 0:01:29]}  Ra8 {[%clk 0:00:40]} 31. Bxd5 {[%clk 0:01:27]}  Rxa3 {[%clk 0:00:39]} 32. Re1 {[%clk 0:01:27]}  h4 {[%clk 0:00:28]} 33. Rh1 {[%clk 0:01:26]}  Kg7 {[%clk 0:00:21]} 34. Rxh4 {[%clk 0:01:24]}  b6 {[%clk 0:00:14]} 35. Kg3 {[%clk 0:01:20]}  Ra1 {[%clk 0:00:13]} 36. Rf4 {[%clk 0:01:18]}  Rd1 {[%clk 0:00:12]} 37. Bc6 {[%clk 0:01:13]}  Be8 {[%clk 0:00:10]} 38. Rg4+ {[%clk 0:01:07]}  Kh6 {[%clk 0:00:08]} 39. Be3+ {[%clk 0:01:02]}  Kh5 {[%clk 0:00:06]} 40. Be4 {[%clk 0:01:01]}  f5 {[%clk 0:00:06]} 41. Rg5+ {[%clk 0:01:01]}  Kh6 {[%clk 0:00:05]} 42. Rxf5+ {[%clk 0:00:59]}  Kg7 {[%clk 0:00:04]} 43. Bh6+ {[%clk 0:00:58]}  Kxh6 {[%clk 0:00:03]} 44. Rxf8 {[%clk 0:00:58]}  Bg6 {[%clk 0:00:03]} 45. Rf6 {[%clk 0:00:55]}  Rg1+ {[%clk 0:00:03]} 46. Kf4 {[%clk 0:00:53]}  Rc1 {[%clk 0:00:03]} 47. Rc6 {[%clk 0:00:50]}  Kg7 {[%clk 0:00:02]} 48. Ke5 {[%clk 0:00:49]}  Re1 {[%clk 0:00:02]} 49. Rxb6 {[%clk 0:00:47]}  Bxe4 {[%clk 0:00:02]} 50. fxe4 {[%clk 0:00:46]}  Re3 {[%clk 0:00:03]} 51. Kd4 {[%clk 0:00:46]}  Re1 {[%clk 0:00:03]} 52. Rxb5 {[%clk 0:00:46]}  Rd1+ {[%clk 0:00:04]} 53. Ke3 {[%clk 0:00:46]}  Kg6 {[%clk 0:00:05]} 54. Rb8 {[%clk 0:00:42]}  h5 {[%clk 0:00:05]} 55. Rg8+ {[%clk 0:00:40]}  Kf7 {[%clk 0:00:05]} 56. Rg5 {[%clk 0:00:39]}  h4 {[%clk 0:00:05]} 57. Rh5 {[%clk 0:00:38]}  Rh1 {[%clk 0:00:04]} 58. Kf2 {[%clk 0:00:36]}  Kg6 {[%clk 0:00:04]} 59. Kg2 {[%clk 0:00:33]}  Rc1 {[%clk 0:00:00]} 60. Rc5 {[%clk 0:00:31]} 1-0


[Site "https://www.chess.com"]

[Event "Titled Tuesday Blitz May 16 Late 2023"]
[White "Estrada Nieto, Julian"]
[Black "mohsengabr2002"]
[WhiteFideId "5101018"]
[WhiteElo "2161"]
[BlackElo "2361"]
[Result "1-0"]
[Round "06"]
[TimeControl "180+2"]
[Date "2023.05.16"]
[WhiteClock "0:00:37"]
[BlackClock "0:01:18"]

1. e4 {[%clk 0:03:00]}  e6 {[%clk 0:02:59]} 2. d4 {[%clk 0:03:00]}  d5 {[%clk 0:02:59]} 3. Nd2 {[%clk 0:03:01]}  dxe4 {[%clk 0:02:59]} 4. Nxe4 {[%clk 0:03:00]}  Nd7 {[%clk 0:03:00]} 5. Nf3 {[%clk 0:02:58]}  Ngf6 {[%clk 0:03:00]} 6. Nxf6+ {[%clk 0:02:59]}  Nxf6 {[%clk 0:03:00]} 7. g3 {[%clk 0:02:59]}  c5 {[%clk 0:03:00]} 8. Bg2 {[%clk 0:02:59]}  cxd4 {[%clk 0:02:57]} 9. Qxd4 {[%clk 0:02:57]}  Qa5+ {[%clk 0:02:54]} 10. Bd2 {[%clk 0:02:55]}  Qa6 {[%clk 0:02:54]} 11. Bb4 {[%clk 0:02:23]}  Bxb4+ {[%clk 0:02:45]} 12. Qxb4 {[%clk 0:02:23]}  Nd5 {[%clk 0:02:46]} 13. Qc5 {[%clk 0:02:16]}  Bd7 {[%clk 0:02:45]} 14. Qa3 {[%clk 0:01:21]}  Qxa3 {[%clk 0:02:38]} 15. bxa3 {[%clk 0:01:22]}  Rc8 {[%clk 0:02:36]} 16. Kd2 {[%clk 0:01:16]}  Nb6 {[%clk 0:02:33]} 17. Ne5 {[%clk 0:01:15]}  f6 {[%clk 0:02:31]} 18. Nxd7 {[%clk 0:01:13]}  Kxd7 {[%clk 0:02:31]} 19. Bxb7 {[%clk 0:01:11]}  Nc4+ {[%clk 0:02:25]} 20. Ke2 {[%clk 0:01:11]}  Rc7 {[%clk 0:02:25]} 21. Be4 {[%clk 0:01:03]}  Nxa3 {[%clk 0:02:23]} 22. Rhd1+ {[%clk 0:00:57]}  Ke7 {[%clk 0:02:23]} 23. Rac1 {[%clk 0:00:57]}  f5 {[%clk 0:02:22]} 24. Bd3 {[%clk 0:00:58]}  Rhc8 {[%clk 0:02:21]} 25. Kd2 {[%clk 0:00:55]}  Rc3 {[%clk 0:02:07]} 26. f4 {[%clk 0:00:49]}  Kf6 {[%clk 0:02:05]} 27. Re1 {[%clk 0:00:49]}  h6 {[%clk 0:01:54]} 28. Re5 {[%clk 0:00:49]}  g5 {[%clk 0:01:52]} 29. Ra5 {[%clk 0:00:44]}  R8c7 {[%clk 0:01:52]} 30. Ra6 {[%clk 0:00:39]}  gxf4 {[%clk 0:01:31]} 31. gxf4 {[%clk 0:00:39]}  h5 {[%clk 0:01:31]} 32. Re1 {[%clk 0:00:39]}  Nc4+ {[%clk 0:01:18]} 33. Kxc3 {[%clk 0:00:37]} 1-0


[Site "https://www.chess.com"]

[Event "Titled Tuesday Blitz May 16 Late 2023"]
[White "Gerbelli Neto, Eduardo"]
[Black "Jimenez Almeida, Luis David"]
[WhiteFideId "2103281"]
[BlackFideId "22242244"]
[WhiteElo "2178"]
[BlackElo "2245"]
[Result "0-1"]
[Round "06"]
[TimeControl "180+2"]
[Date "2023.05.16"]
[WhiteClock "0:00:02"]
[BlackClock "0:00:26"]

1. e4 {[%clk 0:03:00]}  c5 {[%clk 0:02:58]} 2. Nc3 {[%clk 0:03:00]}  a6 {[%clk 0:02:57]} 3. f4 {[%clk 0:02:59]}  b5 {[%clk 0:02:57]} 4. g3 {[%clk 0:03:00]}  Bb7 {[%clk 0:02:57]} 5. Bg2 {[%clk 0:03:00]}  b4 {[%clk 0:02:57]} 6. Na4 {[%clk 0:02:55]}  e6 {[%clk 0:02:56]} 7. c3 {[%clk 0:02:52]}  d5 {[%clk 0:02:50]} 8. d3 {[%clk 0:02:51]}  dxe4 {[%clk 0:02:49]} 9. Bxe4 {[%clk 0:02:49]}  Bxe4 {[%clk 0:02:46]} 10. dxe4 {[%clk 0:02:50]}  Qxd1+ {[%clk 0:02:47]} 11. Kxd1 {[%clk 0:02:50]}  Nf6 {[%clk 0:02:47]} 12. e5 {[%clk 0:02:47]}  Ng4 {[%clk 0:02:30]} 13. Ke2 {[%clk 0:02:46]}  h5 {[%clk 0:02:29]} 14. Nf3 {[%clk 0:02:44]}  Nc6 {[%clk 0:02:27]} 15. Rd1 {[%clk 0:02:32]}  Be7 {[%clk 0:02:23]} 16. h3 {[%clk 0:02:31]}  Nh6 {[%clk 0:02:22]} 17. Be3 {[%clk 0:02:32]}  Nf5 {[%clk 0:02:19]} 18. Bf2 {[%clk 0:02:32]}  bxc3 {[%clk 0:01:51]} 19. bxc3 {[%clk 0:02:31]}  O-O {[%clk 0:01:40]} 20. g4 {[%clk 0:02:30]}  hxg4 {[%clk 0:01:38]} 21. hxg4 {[%clk 0:02:31]}  Nh6 {[%clk 0:01:39]} 22. g5 {[%clk 0:02:28]}  Nf5 {[%clk 0:01:39]} 23. Rab1 {[%clk 0:02:03]}  Rab8 {[%clk 0:01:31]} 24. Nxc5 {[%clk 0:01:47]}  Rb5 {[%clk 0:01:30]} 25. Rxb5 {[%clk 0:01:43]}  axb5 {[%clk 0:01:31]} 26. Rb1 {[%clk 0:01:38]}  Ra8 {[%clk 0:01:30]} 27. Rb2 {[%clk 0:01:36]}  Ra3 {[%clk 0:01:16]} 28. Ne4 {[%clk 0:01:35]}  b4 {[%clk 0:01:12]} 29. cxb4 {[%clk 0:01:22]}  Nxb4 {[%clk 0:01:13]} 30. Nd4 {[%clk 0:01:09]}  Nd3 {[%clk 0:01:04]} 31. Nxf5 {[%clk 0:00:47]}  Nxf4+ {[%clk 0:01:03]} 32. Kd2 {[%clk 0:00:45]}  exf5 {[%clk 0:01:04]} 33. Ng3 {[%clk 0:00:26]}  Bxg5 {[%clk 0:01:02]} 34. Kc2 {[%clk 0:00:22]}  Nd3 {[%clk 0:00:56]} 35. Rb8+ {[%clk 0:00:16]}  Kh7 {[%clk 0:00:56]} 36. Bd4 {[%clk 0:00:14]}  Ne1+ {[%clk 0:00:39]} 37. Kd1 {[%clk 0:00:13]}  Nf3 {[%clk 0:00:28]} 38. Bf2 {[%clk 0:00:11]}  Rxa2 {[%clk 0:00:26]} 39. Bc5 {[%clk 0:00:05]}  Rd2+ {[%clk 0:00:26]} 40. Kc1 {[%clk 0:00:02]}  Rd8+ {[%clk 0:00:26]} 0-1


[Site "https://www.chess.com"]